Workbook

Sheet Introduction
G1: =RIGHT(CELL("filename", C1), LEN(CELL("filename", C1)) - SEARCH("]", CELL("filename", C1))) -> Introduction
G2: =MID(MID(CELL("filename",$A$1),SEARCH("[",CELL("filename",$A$1))+1,SEARCH(".",CELL("filename",$A$1))-SEARCH("[",CELL("filename",$A$1))-1),13,100) & " by Prof. Hugues Pirotte" & " (version " &2011&")" -> Fixed Income and Risk Management (FI) by Prof. Hugues Pirotte (version 2011)
F4: Below is a list of the worksheets | J4: Comment
F5: of the file, by order of appearance:
F6: (CTRL+h = back to "Intro")
E7: 1 | F7: Introduction
E8: 2 | F8: Quick bond review
E9: 3 | F9: YTM and duration
E10: 4 | F10: Graph
E11: 5 | F11: Bond portfolio
E12: 6 | F12: FRN & Swap rates
E13: 7 | F13: modele
E14: 8 | F14: Getting the spot rates
E15: 9 | F15: PCA
E16: 10 | F16: Homework
E17: 11 | F17: Immunisation

Sheet Quick bond review
F1: =RIGHT(CELL("filename", $A$1), LEN(CELL("filename", $A$1)) - SEARCH("]", CELL("filename", $A$1))) -> Quick bond review
F2: =MID(MID(CELL("filename",$A$1),SEARCH("[",CELL("filename",$A$1))+1,SEARCH(".",CELL("filename",$A$1))-SEARCH("[",CELL("filename",$A$1))-1),13,100) & " by Prof. Hugues Pirotte" & " (version " &2011&")" -> Fixed Income and Risk Management (FI) by Prof. Hugues Pirotte (version 2011)
B4: 1 | C4: Simple bond pricing
D5: Here below you find a 5y straight bond, with the possibility to change the coupon rate
F7: coupon | G7: 5
E9: Year | F9: Spot rates | G9: Payments | H9: PV(payments) | I9: Price
E10: 0 | I10: =SUM(H10:H15) -> 105.0150032 | J10: =IF(I10=100,"at par",IF(I10<100,"below par","above par")) -> above par
E11: 1 | F11: 0.02 | G11: =$G$7 -> 5 | H11: =G11/(1+F11)^E11 -> 4.901960784
E12: 2 | F12: 0.025 | G12: =$G$7 -> 5 | H12: =G12/(1+F12)^E12 -> 4.759071981
E13: 3 | F13: 0.0275 | G13: =$G$7 -> 5 | H13: =G13/(1+F13)^E13 -> 4.609188957
E14: 4 | F14: 0.03 | G14: =$G$7 -> 5 | H14: =G14/(1+F14)^E14 -> 4.44243524
E15: 5 | F15: 0.04 | G15: =$G$7+100 -> 105 | H15: =G15/(1+F15)^E15 -> 86.30234621
B17: 2 | C17: Yield-to-maturity
E19: Investment | G19: Using the IRR on the corresponding bond investment is the same
D20: 0 | E20: =-I10 -> -105.0150032 | G20: as asking Excel to "Goal Seek" the single rate so that we obtain
D21: 1 | E21: =G11 -> 5 | G21: the same price.
D22: 2 | E22: =G12 -> 5 | G22: coupon | H22: 5
D23: 3 | E23: =G13 -> 5 | G23: flat rate | H23: 0.03877372325
D24: 4 | E24: =G14 -> 5
D25: 5 | E25: =G15 -> 105 | G25: Year | H25: Spot rates | I25: Payments | J25: PV(payments) | K25: Price
D26: YTM=IRR | E26: =IRR(E20:E25) -> 0.0387737219 | G26: 0 | K26: =SUM(J26:J31) -> 105.0150025 | L26: =K26-I10 -> -6.226876792e-07
G27: 1 | H27: =$H$23 -> 0.03877372325 | I27: =$G$7 -> 5 | J27: =I27/(1+H27)^G27 -> 4.813367809
G28: 2 | H28: =$H$23 -> 0.03877372325 | I28: =$G$7 -> 5 | J28: =I28/(1+H28)^G28 -> 4.633701932
G29: 3 | H29: =$H$23 -> 0.03877372325 | I29: =$G$7 -> 5 | J29: =I29/(1+H29)^G29 -> 4.460742343
G30: 4 | H30: =$H$23 -> 0.03877372325 | I30: =$G$7 -> 5 | J30: =I30/(1+H30)^G30 -> 4.29423872
G31: 5 | H31: =$H$23 -> 0.03877372325 | I31: =$G$7+100 -> 105 | J31: =I31/(1+H31)^G31 -> 86.81295174
B34: 3 | C34: Risks?
D35: 1 | E35: Bond price risk
D36: 2 | E36: Reinvestment risk
B38: 4 | C38: Forward rates
E41: Year | F41: Spot rates
E42: 0
E43: 1 | F43: 0.02
E44: 2 | F44: 0.025
E45: 3 | F45: 0.03
E46: 4 | F46: 0.035
E47: 5 | F47: 0.05 | G47: =F47+E46*(F47-F46) -> 0.11 | H47: =(1+F47)^E47/(1+F46)^E46-1 -> 0.112205648
G48: without | H48: with
G49: compounding
D51: In this case, we can see that the cost of the 5th year of fixing is not 5% but 11%.
D52: A treasurer would probably see this as the cost of fixing a 5th year and being riskless (if the projects are also for 5 years).
D53: But at the same time, he/she will see the firm as an ongoing concern. So, over 20 years, this means rollovering 4 times a
D54: 5y loan or 5 times a 4y loan… He/she may see this as too expensive and prefer the 4y loan and rollover it…
D55: Is that a good analysis? Well, in terms of pure myopic cost analysis, but not in fundamental finance terms.
D56: Interest rate theory would tell you that if this is a market zero-coupon curve, then this is what the market offers/demands,
D57: and therefore, the 11% is not far from the expectation of the 1y spot rate in 4 years from now ("not far", because there are
D58: several variations on the expectations hypothesis).
B61: 5 | C61: Duration…why?
D62: Example of a bank…
K63: Asset | N63: Liabilities
E64: Assets | G64: Liabilities | J64: 0.5 | K64: ST loans | L64: 0.5 | M64: 0.4 | N64: Deposits | O64: =3/12 -> 0.25
E65: Loans | G65: Deposits | J65: =1-J64 -> 0.5 | K65: Mortgages | L65: 20 | M65: 0.2 | N65: Interbank | O65: =6/12 -> 0.5
E66: Mortgages | G66: Interbank loans | M66: 0.32 | N66: Bonds | O66: 5
E67: etc… | G67: Debt | M67: 0.08 | N67: Equity | O67: 100
G68: Equity | M68: =SUM(M64:M67) -> 1
L69: =SUMPRODUCT(J64:J68,L64:L68) -> 10.25 | O69: =SUMPRODUCT(M64:M68,O64:O68) -> 9.8
D71: Duration…meanings?
D72: 1 | E72: Sensitivity to Irs --> first derivative of a bond price to changes in Irs.
E73: Important for "market values"
E74: Important for the interest margin
E75: ex: for a Savings & Loans --> the volatility of the interest margin that matters.
D76: 2 | E76: "Effective maturity" of the borrowing/lending --> a kind of a discounted payback period.
D77: 3 | E77: This bond has the behavior of a 0-coupon bond lasting Duration-years.
B90: 6 | C90: Convexity
E91: It is just a second derivative that can be used in a Taylor's expansion.

Sheet YTM and duration
F1: =RIGHT(CELL("filename", $A$1), LEN(CELL("filename", $A$1)) - SEARCH("]", CELL("filename", $A$1))) -> YTM and duration
F2: =MID(MID(CELL("filename",$A$1),SEARCH("[",CELL("filename",$A$1))+1,SEARCH(".",CELL("filename",$A$1))-SEARCH("[",CELL("filename",$A$1))-1),13,100) & " by Prof. Hugues Pirotte" & " (version " &2011&")" -> Fixed Income and Risk Management (FI) by Prof. Hugues Pirotte (version 2011)
B4: C | C4: Yield-to-maturity and reinvestment
K5: reinvestment rate
K6: 0.11
E7: coupon | F7: 10
E8: maturity | F8: 5 | H8: Weight of PV | J8: Investment | K8: Reinvestment
D9: Year | E9: spot rates | F9: Cash flow | G9: PV | H9: in total price | J9: Profile | K9: of CFs | L9: Money | M9: Total | N9: Annual
D10: 0 | J10: =-G21 -> -89.77971738 | L10: at end | M10: return | N10: return | Q10: =J10 -> -89.77971738
D11: 1 | E11: 0.12 | F11: =IF($D11<=F$8,F$7,0)+IF($D11=F$8,100,0) -> 10 | G11: =F11/(1+E11)^D11 -> 8.928571429 | H11: =G11/$G$21 -> 0.09944976092 | J11: =F11 -> 10 | K11: =J11*(1+$K$6)^($F$8-D11) -> 15.1807041 | L11: =SUM(K11:K20) -> 162.2780141 | M11: =L11/G21-1 -> 0.8075130869 | N11: =(1+M11)^(1/F8)-1 -> 0.1256834734 | P11: =J11 -> 10 | Q11: =Q10+P11 -> -79.77971738
D12: 2 | E12: =E11+0.25% -> 0.1225 | F12: =IF($D12<=F$8,F$7,0)+IF($D12=F$8,100,0) -> 10 | G12: =F12/(1+E12)^D12 -> 7.936468569 | H12: =G12/$G$21 -> 0.088399349 | J12: =F12 -> 10 | K12: =J12*(1+$K$6)^($F$8-D12) -> 13.67631 | P12: =J12 -> 10 | Q12: =Q11+P12 -> -69.77971738
D13: 3 | E13: =E12+0.25% -> 0.125 | F13: =IF($D13<=F$8,F$7,0)+IF($D13=F$8,100,0) -> 10 | G13: =F13/(1+E13)^D13 -> 7.023319616 | H13: =G13/$G$21 -> 0.07822835515 | J13: =F13 -> 10 | K13: =J13*(1+$K$6)^($F$8-D13) -> 12.321 | P13: =J13 -> 10 | Q13: =Q12+P13 -> -59.77971738
D14: 4 | E14: =E13+0.25% -> 0.1275 | F14: =IF($D14<=F$8,F$7,0)+IF($D14=F$8,100,0) -> 10 | G14: =F14/(1+E14)^D14 -> 6.187764803 | H14: =G14/$G$21 -> 0.06892163379 | J14: =F14 -> 10 | K14: =J14*(1+$K$6)^($F$8-D14) -> 11.1 | P14: =J14 -> 10 | Q14: =Q13+P14 -> -49.77971738
D15: 5 | E15: =E14+0.25% -> 0.13 | F15: =IF($D15<=F$8,F$7,0)+IF($D15=F$8,100,0) -> 110 | G15: =F15/(1+E15)^D15 -> 59.70359296 | H15: =G15/$G$21 -> 0.6650009011 | J15: =F15 -> 110 | K15: =J15*(1+$K$6)^($F$8-D15) -> 110 | P15: =J15 -> 110 | Q15: =Q14+P15 -> 60.22028262
D16: 6 | E16: =E15+0.25% -> 0.1325 | F16: =IF($D16<=F$8,F$7,0)+IF($D16=F$8,100,0) -> 0 | G16: =F16/(1+E16)^D16 -> 0 | H16: =G16/$G$21 -> 0 | J16: =F16 -> 0 | K16: =J16*(1+$K$6)^($F$8-D16) -> 0 | P16: =J16 -> 0 | Q16: =Q15+P16 -> 60.22028262
D17: 7 | E17: =E16+0.25% -> 0.135 | F17: =IF($D17<=F$8,F$7,0)+IF($D17=F$8,100,0) -> 0 | G17: =F17/(1+E17)^D17 -> 0 | H17: =G17/$G$21 -> 0 | J17: =F17 -> 0 | K17: =J17*(1+$K$6)^($F$8-D17) -> 0
D18: 8 | E18: =E17+0.25% -> 0.1375 | F18: =IF($D18<=F$8,F$7,0)+IF($D18=F$8,100,0) -> 0 | G18: =F18/(1+E18)^D18 -> 0 | H18: =G18/$G$21 -> 0 | J18: =F18 -> 0 | K18: =J18*(1+$K$6)^($F$8-D18) -> 0
D19: 9 | E19: =E18+0.25% -> 0.14 | F19: =IF($D19<=F$8,F$7,0)+IF($D19=F$8,100,0) -> 0 | G19: =F19/(1+E19)^D19 -> 0 | H19: =G19/$G$21 -> 0 | J19: =F19 -> 0 | K19: =J19*(1+$K$6)^($F$8-D19) -> 0
D20: 10 | E20: =E19+0.25% -> 0.1425 | F20: =IF($D20<=F$8,F$7,0)+IF($D20=F$8,100,0) -> 0 | G20: =F20/(1+E20)^D20 -> 0 | H20: =G20/$G$21 -> 0 | J20: =F20 -> 0 | K20: =J20*(1+$K$6)^($F$8-D20) -> 0
G21: =SUM(G11:G20) -> 89.77971738 | J21: =IRR(J10:J20) -> 0.1289858836 | K21: YIELD-TO-MATURITY OF THE BOND
F23: Duration | G23: =SUMPRODUCT(H11:H20,D11:D20) -> 4.111624565 | H23: Thanks to the duration, we know that this 6y bond has the same sensitivity to interest rates than an otherwise equivalent
H24: 0-coupon bond of 4.11 years. That also means that, it is approximately right to say that a 6Y bond does not present a reinvestment
H25: risk if it is considered as having a real duration of 4.11 years, and not of 6 years.

Sheet Graph
B2: =RIGHT(CELL("filename", C1), LEN(CELL("filename", C1)) - SEARCH("]", CELL("filename", C1))) -> Graph
C5: coupon | D5: 12
C6: maturity | D6: 6
B7: Year | C7: spot rates | D7: Bond 1 | E7: PV | H7: Maturities
B8: 1 | C8: 0.12 | D8: =IF($B8<=D$6,D$5,0)+IF($B8=D$6,100,0) -> 12 | E8: =D8/(1+C8)^B8 -> 10.71428571 | G8: =E23 -> 100 | H8: 1 | I8: 2 | J8: 3 | K8: 4 | L8: 5 | M8: 6 | N8: 7 | O8: 8 | P8: 9 | Q8: 10 | R8: 11 | S8: 12 | T8: 13 | U8: 14 | V8: 15
B9: 2 | C9: =$C$8 -> 0.12 | D9: =IF($B9<=D$6,D$5,0)+IF($B9=D$6,100,0) -> 12 | E9: =D9/(1+C9)^B9 -> 9.566326531 | F9: IR | G9: 0.01 | H9: 110.8910891 | I9: 121.6743457 | J9: 132.3508373 | K9: 142.9216211 | L9: 153.3877436 | M9: 163.7502412 | N9: 174.0101398 | O9: 184.1684553 | P9: 194.2261933 | Q9: 204.1843498 | R9: 214.0439107 | S9: 223.8058522 | T9: 233.4711408 | U9: 243.0407335 | V9: 252.5155777
B10: 3 | C10: =$C$8 -> 0.12 | D10: =IF($B10<=D$6,D$5,0)+IF($B10=D$6,100,0) -> 12 | E10: =D10/(1+C10)^B10 -> 8.541362974 | G10: 0.02 | H10: 109.8039216 | I10: 119.4156094 | J10: 128.8388327 | K10: 138.077287 | L10: 147.1345951 | M10: 156.0143089 | N10: 164.7199107 | O10: 173.2548144 | P10: 181.6223671 | Q10: 189.8258501 | R10: 197.8684805 | S10: 205.7534122 | T10: 213.4837375 | U10: 221.0624877 | V10: 228.492635
B11: 4 | C11: =$C$8 -> 0.12 | D11: =IF($B11<=D$6,D$5,0)+IF($B11=D$6,100,0) -> 12 | E11: =D11/(1+C11)^B11 -> 7.626216941 | G11: 0.03 | H11: 108.7378641 | I11: 117.2212273 | J11: 125.4575022 | K11: 133.4538856 | L11: 141.2173647 | M11: 148.754723 | N11: 156.0725466 | O11: 163.1772297 | P11: 170.0749803 | Q11: 176.7718255 | R11: 183.273617 | S11: 189.5860359 | T11: 195.714598 | U11: 201.6646583 | V11: 207.4414158
B12: 5 | C12: =$C$8 -> 0.12 | D12: =IF($B12<=D$6,D$5,0)+IF($B12=D$6,100,0) -> 12 | E12: =D12/(1+C12)^B12 -> 6.809122269 | G12: 0.04 | H12: 107.6923077 | I12: 115.0887574 | J12: 122.2007283 | K12: 129.0391618 | L12: 135.6145786 | M12: 141.9370949 | N12: 148.0164374 | O12: 153.861959 | P12: 159.4826529 | Q12: 164.8871662 | R12: 170.0838137 | S12: 175.0805901 | T12: 179.8851828 | U12: 184.5049834 | V12: 188.9470995
B13: 6 | C13: =$C$8 -> 0.12 | D13: =IF($B13<=D$6,D$5,0)+IF($B13=D$6,100,0) -> 112 | E13: =D13/(1+C13)^B13 -> 56.74268557 | G13: 0.05 | H13: 106.6666667 | I13: 113.015873 | J13: 119.0627362 | K13: 124.8216535 | L13: 130.3063367 | M13: 135.5298445 | N13: 140.5046138 | O13: 145.2424893 | P13: 149.7547517 | Q13: 154.0521445 | R13: 158.1448995 | S13: 162.0427615 | T13: 165.7550109 | U13: 169.2904866 | V13: 172.6576063
B14: 7 | C14: =$C$8 -> 0.12 | D14: =IF($B14<=D$6,D$5,0)+IF($B14=D$6,100,0) -> 0 | E14: =D14/(1+C14)^B14 -> 0 | G14: 0.06 | H14: 105.6603774 | I14: 111.000356 | J14: 116.0380717 | K14: 120.7906337 | L14: 125.2741827 | M14: 129.503946 | N14: 133.4942886 | O14: 137.2587629 | P14: 140.8101536 | Q14: 144.1605223 | R14: 147.3212475 | S14: 150.3030636 | T14: 153.1160978 | U14: 155.7699036 | V14: 158.2734939
B15: 8 | C15: =$C$8 -> 0.12 | D15: =IF($B15<=D$6,D$5,0)+IF($B15=D$6,100,0) -> 0 | E15: =D15/(1+C15)^B15 -> 0 | G15: 0.07 | H15: 104.6728972 | I15: 109.0400908 | J15: 113.1215802 | K15: 116.9360563 | L15: 120.5009872 | M15: 123.8326983 | N15: 126.946447 | O15: 129.8564925 | P15: 132.5761612 | Q15: 135.1179077 | R15: 137.4933717 | S15: 139.7134315 | T15: 141.7882537 | U15: 143.7273399 | V15: 145.53957
B16: 9 | C16: =$C$8 -> 0.12 | D16: =IF($B16<=D$6,D$5,0)+IF($B16=D$6,100,0) -> 0 | E16: =D16/(1+C16)^B16 -> 0 | G16: 0.08 | H16: 103.7037037 | I16: 107.133059 | J16: 110.3083879 | K16: 113.2485074 | L16: 115.9708401 | M16: 118.4915187 | N16: 120.8254802 | O16: 122.9865558 | P16: 124.9875516 | Q16: 126.8403256 | R16: 128.555857 | S16: 130.1443121 | T16: 131.6151038 | U16: 132.9769479 | V16: 134.2379148
B17: 10 | C17: =$C$8 -> 0.12 | D17: =IF($B17<=D$6,D$5,0)+IF($B17=D$6,100,0) -> 0 | E17: =D17/(1+C17)^B17 -> 0 | G17: 0.09 | H17: 102.7522936 | I17: 105.2773336 | J17: 107.593884 | K17: 109.7191596 | L17: 111.6689538 | M17: 113.4577558 | N17: 115.0988585 | O17: 116.6044573 | P17: 117.9857407 | Q17: 119.2529731 | R17: 120.4155717 | S17: 121.4821758 | T17: 122.4607118 | U17: 123.3584512 | V17: 124.1820653
B18: 11 | C18: =$C$8 -> 0.12 | D18: =IF($B18<=D$6,D$5,0)+IF($B18=D$6,100,0) -> 0 | E18: =D18/(1+C18)^B18 -> 0 | G18: 0.1 | H18: 101.8181818 | I18: 103.4710744 | J18: 104.973704 | K18: 106.3397309 | L18: 107.5815735 | M18: 108.7105214 | N18: 109.7368376 | O18: 110.6698524 | P18: 111.5180476 | Q18: 112.2891342 | R18: 112.990122 | S18: 113.6273836 | T18: 114.2067124 | U18: 114.7333749 | V18: 115.212159
B19: 12 | C19: =$C$8 -> 0.12 | D19: =IF($B19<=D$6,D$5,0)+IF($B19=D$6,100,0) -> 0 | E19: =D19/(1+C19)^B19 -> 0 | G19: 0.11 | H19: 100.9009009 | I19: 101.7125233 | J19: 102.4437147 | K19: 103.1024457 | L19: 103.695897 | M19: 104.2305379 | N19: 104.7121963 | O19: 105.1461228 | P19: 105.5370475 | Q19: 105.889232 | R19: 106.2065153 | S19: 106.4923561 | T19: 106.7498704 | U19: 106.9818652 | V19: 107.1908696
B20: 13 | C20: =$C$8 -> 0.12 | D20: =IF($B20<=D$6,D$5,0)+IF($B20=D$6,100,0) -> 0 | E20: =D20/(1+C20)^B20 -> 0 | G20: 0.12 | H20: 100 | I20: 100 | J20: 100 | K20: 100 | L20: 100 | M20: 100 | N20: 100 | O20: 100 | P20: 100 | Q20: 100 | R20: 100 | S20: 100 | T20: 100 | U20: 100 | V20: 100
B21: 14 | C21: =$C$8 -> 0.12 | D21: =IF($B21<=D$6,D$5,0)+IF($B21=D$6,100,0) -> 0 | E21: =D21/(1+C21)^B21 -> 0 | G21: 0.13 | H21: 99.11504425 | I21: 98.33189756 | J21: 97.6388474 | K21: 97.02552867 | L21: 96.48276874 | M21: 96.00245021 | N21: 95.57738957 | O21: 95.20122971 | P21: 94.86834487 | Q21: 94.57375652 | R21: 94.31305887 | S21: 94.08235298 | T21: 93.87818848 | U21: 93.69751193 | V21: 93.53762118
B22: 15 | C22: =$C$8 -> 0.12 | D22: =IF($B22<=D$6,D$5,0)+IF($B22=D$6,100,0) -> 0 | E22: =D22/(1+C22)^B22 -> 0 | G22: 0.14 | H22: 98.24561404 | I22: 96.70667898 | J22: 95.35673595 | K22: 94.17257539 | L22: 93.13383806 | M22: 92.22266497 | N22: 91.42339032 | O22: 90.72227221 | P22: 90.10725633 | Q22: 89.56776871 | R22: 89.09453395 | S22: 88.67941575 | T22: 88.31527697 | U22: 87.99585699 | V22: 87.71566403
E23: =SUM(E8:E22) -> 100 | G23: 0.15 | H23: 97.39130435 | I23: 95.12287335 | J23: 93.15032465 | K23: 91.43506491 | L23: 89.94353471 | M23: 88.64655192 | N23: 87.5187408 | O23: 86.53803548 | P23: 85.68524824 | Q23: 84.94369412 | R23: 84.29886445 | S23: 83.738143 | T23: 83.25055913 | U23: 82.82657316 | V23: 82.4578897
G24: 0.16 | H24: 96.55172414 | I24: 93.57907253 | J24: 91.01644184 | K24: 88.80727745 | L24: 86.90282539 | M24: 85.26105637 | N24: 83.84573825 | O24: 82.62563642 | P24: 81.5738245 | Q24: 80.66709009 | R24: 79.88542249 | S24: 79.21157111 | T24: 78.63066475 | U24: 78.12988341 | V24: 77.69817535
G25: 0.17 | H25: 95.72649573 | I25: 92.07392797 | J25: 88.95207519 | K25: 86.28382495 | L25: 84.00326919 | M25: 82.05407623 | N25: 80.38809934 | O25: 78.96418747 | P25: 77.74716878 | Q25: 76.70698186 | R25: 75.81793321 | S25: 75.05806258 | T25: 74.40860049 | U25: 73.85350469 | V25: 73.37906384
G26: 0.18 | H26: 94.91525424 | I26: 90.60614766 | J26: 86.95436242 | K26: 83.85962917 | L26: 81.23697387 | M26: 79.01438464 | N26: 77.13083444 | O26: 75.53460546 | P26: 74.18186903 | Q26: 73.03548223 | R26: 72.06396799 | S26: 71.24065084 | T26: 70.54292444 | U26: 69.95163088 | V26: 69.45053465
G27: 0.19 | H27: 94.11764706 | I27: 89.17449333 | J27: 85.02058263 | K27: 81.52990137 | L27: 78.59655577 | M27: 76.13155947 | N27: 74.06013401 | O27: 72.31944034 | P27: 70.85667256 | Q27: 69.62745593 | R27: 68.59450078 | S27: 67.72647125 | T27: 66.99703466 | U27: 66.38406274 | V27: 65.86896029
G28: 0.2 | H28: 93.33333333 | I28: 87.77777778 | J28: 83.14814815 | K28: 79.29012346 | L28: 76.07510288 | M28: 73.39591907 | N28: 71.16326589 | O28: 69.30272157 | P28: 67.75226798 | Q28: 66.46022332 | R28: 65.38351943 | S28: 64.48626619 | T28: 63.73855516 | U28: 63.11546263 | V28: 62.59621886
G29: 0.21 | H29: 92.56198347 | I29: 86.41486237 | J29: 81.334597 | K29: 77.13603058 | L29: 73.66614098 | M29: 70.79846362 | N29: 68.42848233 | O29: 66.46982011 | P29: 64.851091 | Q29: 63.51329834 | R29: 62.40768458 | S29: 61.4939542 | T29: 60.73880512 | U29: 60.11471498 | V29: 59.598938
G30: 0.22 | H30: 91.80327869 | I30: 85.08465466 | J30: 79.57758579 | K30: 75.06359491 | L30: 71.36360238 | M30: 68.33082163 | N30: 65.84493576 | O30: 63.80732439 | P30: 62.13715114 | Q30: 60.76815667 | R30: 59.64603006 | S30: 58.72625415 | T30: 57.97233947 | U30: 57.35437661 | V30: 56.84784968
G31: 0.23 | H31: 91.05691057 | I31: 83.78610615 | J31: 77.87488305 | K31: 73.06901061 | L31: 69.16179724 | M31: 65.98520101 | N31: 63.40260245 | O31: 61.30292882 | P31: 59.59587709 | Q31: 58.20803015 | R31: 57.07969931 | S31: 56.16235716 | T31: 55.41655054 | U31: 54.81020369 | V31: 54.31723877
G32: 0.24 | H32: 90.32258065 | I32: 82.5182102 | J32: 76.22436306 | K32: 71.14867989 | L32: 67.05538701 | M32: 63.75434436 | N32: 61.09221319 | O32: 58.94533322 | P32: 57.2139784 | Q32: 55.81772452 | R32: 54.69171332 | S32: 53.78363978 | T32: 53.0513224 | U32: 52.46074387 | V32: 51.98447086
G33: 0.25 | H33: 89.6 | I33: 81.28 | J33: 74.624 | K33: 69.2992 | L33: 65.03936 | M33: 61.631488 | N33: 58.9051904 | O33: 56.72415232 | P33: 54.97932186 | Q33: 53.58345748 | R33: 52.46676599 | S33: 51.57341279 | T33: 50.85873023 | U33: 50.28698419 | V33: 49.82958735
G34: 0.26 | H34: 88.88888889 | I34: 80.07054674 | J34: 73.07186249 | K34: 67.51735118 | L34: 63.10900887 | M34: 59.6103245 | N34: 56.83359088 | O34: 54.62983403 | P34: 52.88082066 | Q34: 51.49271481 | R34: 50.3910435 | S34: 49.51670119 | T34: 48.82277872 | U34: 48.2720466 | V34: 47.83495762
G35: 0.27 | H35: 88.18897638 | I35: 78.88895778 | J35: 71.56610849 | K35: 65.80008542 | L35: 61.25990978 | M35: 57.68496833 | N35: 54.8700538 | O35: 52.65358567 | P35: 50.90833518 | Q35: 49.53412219 | R35: 48.45206471 | S35: 47.60005096 | T35: 46.92917398 | U35: 46.40092439 | V35: 45.98497984
G36: 0.28 | H36: 87.5 | I36: 77.734375 | J36: 70.10498047 | K36: 64.14451599 | L36: 59.48790312 | M36: 55.84992431 | N36: 53.00775337 | O36: 50.78730732 | P36: 49.05258384 | Q36: 47.69733113 | R36: 46.63853994 | S36: 45.81135933 | T36: 45.16512448 | U36: 44.6602535 | V36: 44.26582305
G37: 0.29 | H37: 86.82170543 | I37: 76.6059732 | J37: 68.68680093 | K37: 62.5479077 | L37: 57.78907573 | M37: 54.10005871 | N37: 51.24035559 | O37: 49.02353146 | P37: 47.30506315 | Q37: 45.97291717 | R37: 44.94024587 | S37: 44.13972548 | T37: 43.51916704 | U37: 43.03811398 | V37: 42.66520464
G38: 0.3 | H38: 86.15384615 | I38: 75.50295858 | J38: 67.30996814 | K38: 61.0076678 | L38: 56.15974446 | M38: 52.43057266 | N38: 49.56197897 | O38: 47.35536844 | P38: 45.65797572 | Q38: 44.35228902 | R38: 43.34791463 | S38: 42.57531895 | T38: 41.98101457 | U38: 41.52385736 | V38: 41.17219797

Sheet Bond portfolio
F1: =RIGHT(CELL("filename", $A$1), LEN(CELL("filename", $A$1)) - SEARCH("]", CELL("filename", $A$1))) -> Bond portfolio
F2: =MID(MID(CELL("filename",$A$1),SEARCH("[",CELL("filename",$A$1))+1,SEARCH(".",CELL("filename",$A$1))-SEARCH("[",CELL("filename",$A$1))-1),13,100) & " by Prof. Hugues Pirotte" & " (version " &2011&")" -> Fixed Income and Risk Management (FI) by Prof. Hugues Pirotte (version 2011)
B4: 1 | C4: Some simple bond portfolio
D5: As a treasurer, you would look at your bond portfolio more as flows per term than a sum of individual
D6: bond securities…
F7: coupon | G7: 4 | H7: 3 | I7: 2 | J7: 1 | K7: 6
F8: maturity | G8: 2 | H8: 3 | I8: 5 | J8: 4 | K8: 2
E9: Year | F9: spot rates | G9: Bond 1 | H9: Bond 2 | I9: Bond 3 | J9: Bond 4 | K9: Bond 5 | L9: TOTAL | M9: PV(TOTAL)
E10: 1 | F10: 0.13 | G10: =IF($E10<=G$8,G$7,0)+IF($E10=G$8,100,0) -> 4 | H10: =IF($E10<=H$8,H$7,0)+IF($E10=H$8,100,0) -> 3 | I10: =IF($E10<=I$8,I$7,0)+IF($E10=I$8,100,0) -> 2 | J10: =IF($E10<=J$8,J$7,0)+IF($E10=J$8,100,0) -> 1 | K10: =IF($E10<=K$8,K$7,0)+IF($E10=K$8,100,0) -> 6 | L10: =SUM(G10:K10) -> 16 | M10: =L10/(1+F10)^E10 -> 14.15929204
E11: 2 | F11: 0.1325 | G11: =IF($E11<=G$8,G$7,0)+IF($E11=G$8,100,0) -> 104 | H11: =IF($E11<=H$8,H$7,0)+IF($E11=H$8,100,0) -> 3 | I11: =IF($E11<=I$8,I$7,0)+IF($E11=I$8,100,0) -> 2 | J11: =IF($E11<=J$8,J$7,0)+IF($E11=J$8,100,0) -> 1 | K11: =IF($E11<=K$8,K$7,0)+IF($E11=K$8,100,0) -> 106 | L11: =SUM(G11:K11) -> 216 | M11: =L11/(1+F11)^E11 -> 168.4136661
E12: 3 | F12: 0.1355 | G12: =IF($E12<=G$8,G$7,0)+IF($E12=G$8,100,0) -> 0 | H12: =IF($E12<=H$8,H$7,0)+IF($E12=H$8,100,0) -> 103 | I12: =IF($E12<=I$8,I$7,0)+IF($E12=I$8,100,0) -> 2 | J12: =IF($E12<=J$8,J$7,0)+IF($E12=J$8,100,0) -> 1 | K12: =IF($E12<=K$8,K$7,0)+IF($E12=K$8,100,0) -> 0 | L12: =SUM(G12:K12) -> 106 | M12: =L12/(1+F12)^E12 -> 72.40098081
E13: 4 | F13: 0.138 | G13: =IF($E13<=G$8,G$7,0)+IF($E13=G$8,100,0) -> 0 | H13: =IF($E13<=H$8,H$7,0)+IF($E13=H$8,100,0) -> 0 | I13: =IF($E13<=I$8,I$7,0)+IF($E13=I$8,100,0) -> 2 | J13: =IF($E13<=J$8,J$7,0)+IF($E13=J$8,100,0) -> 101 | K13: =IF($E13<=K$8,K$7,0)+IF($E13=K$8,100,0) -> 0 | L13: =SUM(G13:K13) -> 103 | M13: =L13/(1+F13)^E13 -> 61.41411197
E14: 5 | F14: 0.1425 | G14: =IF($E14<=G$8,G$7,0)+IF($E14=G$8,100,0) -> 0 | H14: =IF($E14<=H$8,H$7,0)+IF($E14=H$8,100,0) -> 0 | I14: =IF($E14<=I$8,I$7,0)+IF($E14=I$8,100,0) -> 102 | J14: =IF($E14<=J$8,J$7,0)+IF($E14=J$8,100,0) -> 0 | K14: =IF($E14<=K$8,K$7,0)+IF($E14=K$8,100,0) -> 0 | L14: =SUM(G14:K14) -> 102 | M14: =L14/(1+F14)^E14 -> 52.39853298
L15: TOTAL | M15: =SUM(M10:M14) -> 368.7865839 | N15: AV. DURATION | O15: =SUMPRODUCT(M10:M14,E10:E14)/M15 -> 2.917239201
F17: PV | G17: Bond 1 | H17: Bond 2 | I17: Bond 3 | J17: Bond 4 | K17: Bond 5
G18: =G10/(1+$F10)^$E10 -> 3.539823009 | H18: =H10/(1+$F10)^$E10 -> 2.654867257 | I18: =I10/(1+$F10)^$E10 -> 1.769911504 | J18: =J10/(1+$F10)^$E10 -> 0.8849557522 | K18: =K10/(1+$F10)^$E10 -> 5.309734513
G19: =G11/(1+$F11)^$E11 -> 81.08806144 | H19: =H11/(1+$F11)^$E11 -> 2.339078695 | I19: =I11/(1+$F11)^$E11 -> 1.559385797 | J19: =J11/(1+$F11)^$E11 -> 0.7796928985 | K19: =K11/(1+$F11)^$E11 -> 82.64744724
G20: =G12/(1+$F12)^$E12 -> 0 | H20: =H12/(1+$F12)^$E12 -> 70.35189645 | I20: =I12/(1+$F12)^$E12 -> 1.366056242 | J20: =J12/(1+$F12)^$E12 -> 0.6830281209 | K20: =K12/(1+$F12)^$E12 -> 0
G21: =G13/(1+$F13)^$E13 -> 0 | H21: =H13/(1+$F13)^$E13 -> 0 | I21: =I13/(1+$F13)^$E13 -> 1.192507029 | J21: =J13/(1+$F13)^$E13 -> 60.22160494 | K21: =K13/(1+$F13)^$E13 -> 0
G22: =G14/(1+$F14)^$E14 -> 0 | H22: =H14/(1+$F14)^$E14 -> 0 | I22: =I14/(1+$F14)^$E14 -> 52.39853298 | J22: =J14/(1+$F14)^$E14 -> 0 | K22: =K14/(1+$F14)^$E14 -> 0
G23: =SUM(G18:G22) -> 84.62788445 | H23: =SUM(H18:H22) -> 75.3458424 | I23: =SUM(I18:I22) -> 58.28639355 | J23: =SUM(J18:J22) -> 62.56928171 | K23: =SUM(K18:K22) -> 87.95718175 | M23: TOTAL | N23: =SUM(G23:K23) -> 368.7865839
F25: Duration | G25: =SUMPRODUCT($E$10:$E$14,G18:G22)/G23 -> 1.958171907 | H25: =SUMPRODUCT($E$10:$E$14,H18:H22)/H23 -> 2.898483938 | I25: =SUMPRODUCT($E$10:$E$14,I18:I22)/I23 -> 4.730941958 | J25: =SUMPRODUCT($E$10:$E$14,J18:J22)/J23 -> 3.921730264 | K25: =SUMPRODUCT($E$10:$E$14,K18:K22)/K23 -> 1.939632735 | M25: AV. DURATION | N25: =SUMPRODUCT(G23:K23,G25:K25)/N23 -> 2.917239201
B27: 2 | C27: The duration has many meanings….
D28: But first…
C29: a | D29: If interest rates go up
D30: 1 | E30: It's bad for market values, because of the discounting of cash flows. | L30: --> but I can get rid of that risk by keeping bonds until maturity.
D31: 2 | E31: It's good for the reinvestment of the coupons! | L31: --> and this risk can be eliminated if we would have 0-coupon bonds.
C32: b | D32: And the reverse is true… So, price risk and reinvestment risk are two opposite forces/risks in bonds.
C34: c | D34: So, the duration has 3 meanings…
D35: 1 | E35: The effective "maturity" or duration of the bond
D36: 2 | E36: It is the maturity of an equivalent 0-coupon bond.
D37: 3 | E37: The duration is the factor between a change in interest rates
E38: and the change in % of the bond price.
D42: 4 | E42: The frequency of renewal of the fixing of interest
E43: payments.
B47: 3 | C47: If I am a manager of a pension fund…
E49: Assets | G49: Liabilities
E50: Bond investments | G50: Rents to pensioneers
G51: 5
G52: 10
G53: 15
D59: A similar duration means:
D60: 1 | E60: On average, rents are due at the same term-horizons
E61: that bonds pay back.
D62: 2 | E62: On average, the sensitivity of our portfolio of bonds
E63: to changes in interest rates is the same as the sensitivity
E64: of the market value of rents.
D65: 3 | E65: Interest fixing frequencies are similar.

Sheet FRN & Swap rates
F1: =RIGHT(CELL("filename", $A$1), LEN(CELL("filename", $A$1)) - SEARCH("]", CELL("filename", $A$1))) -> FRN & Swap rates
F2: =MID(MID(CELL("filename",$A$1),SEARCH("[",CELL("filename",$A$1))+1,SEARCH(".",CELL("filename",$A$1))-SEARCH("[",CELL("filename",$A$1))-1),13,100) & " by Prof. Hugues Pirotte" & " (version " &2011&")" -> Fixed Income and Risk Management (FI) by Prof. Hugues Pirotte (version 2011)
B4: C1 | C4: A swap…
D5: ...is made of two legs, one "floating", one fixed.
D6: The floating one represents a bond with variable coupons…and such a bond is also called a Floating-Rate-Note (FRN)
D8: FLOATING LEG > FRN | J8: FIXED LEG
D9: paying LIBOR, and assuming the first spot rate of the curve
D10: here below is LIBOR 12m | J10: coupon | K10: 3.901292854 | L10: (We can find this coupon rate through a Goal Seek search, to make
E11: Spot | L11: both legs equal so the value of the swap at inception = 0)
D12: Year | E12: rates | F12: Payments | G12: PV(payments) | H12: Price | J12: Year | K12: rates | L12: Payments | M12: DF(t) | N12: PV(payments) | O12: Price
D13: 0 | H13: =SUM(G13:G18) -> 100 | J13: 0 | O13: =SUM(N13:N18) -> 100
D14: 1 | E14: 0.02 | F14: =E14*100 -> 2 | G14: =F14/(1+E14)^D14 -> 1.960784314 | J14: 1 | K14: 0.02 | L14: =$K$10 -> 3.901292854 | M14: =1/(1+K14)^J14 -> 0.9803921569 | N14: =L14*M14 -> 3.824796915
D15: 2 | E15: 0.025 | F15: =((1+E15)^D15/(1+E14)^D14-1)*100 -> 3.00245098 | G15: =F15/(1+E15)^D15 -> 2.857776067 | J15: 2 | K15: 0.025 | L15: =$K$10 -> 3.901292854 | M15: =1/(1+K15)^J15 -> 0.9518143962 | N15: =L15*M15 -> 3.713306702
D16: 3 | E16: 0.0275 | F16: =((1+E16)^D16/(1+E15)^D15-1)*100 -> 3.251830756 | G16: =F16/(1+E16)^D16 -> 2.997660482 | J16: 3 | K16: 0.0275 | L16: =$K$10 -> 3.901292854 | M16: 0.9218377914 | N16: 3.596359188
D17: 4 | E17: 0.03 | F17: =((1+E17)^D17/(1+E16)^D16-1)*100 -> 3.753655559 | G17: =F17/(1+E17)^D17 -> 3.335074346 | J17: 4 | K17: 0.03 | L17: =$K$10 -> 3.901292854 | M17: 0.8884870479 | N17: 3.466248171
D18: 5 | E18: 0.04 | F18: =((1+E18)^D18/(1+E17)^D17-1)*100+100 -> 108.0980346 | G18: =F18/(1+E18)^D18 -> 88.84870479 | J18: 5 | K18: 0.04 | L18: =$K$10+100 -> 103.9012929 | M18: 0.8219271068 | N18: 85.39928902
E20: The quotation would appear as "LIBOR 1y vs. 3.90%" or "the 5y swap rate is 3.90%"
D22: The rate can be found easily by isolating the "s" rate in the equation:
D24: i.e. | E24: =(H13-100*M18)/SUM(M14:M18) -> 3.901292854
B26: C2 | C26: An amortizing swap
E28: Original Notional | F28: 1000000
E29: Amortizing? | F29: yes
E30: Years | F30: 7
D32: Even if the notional is amortizing through time, the floating leg is still = 100 at a precise date of payment!
D34: FLOATING LEG > FRN | N34: coupon | O34: 0.03003667041 | P34: (obtained with Goal Seek)
D36: Year | E36: Spot rates | F36: Notionals | G36: Repayments | H36: E(rate) | I36: E(flows) | J36: DFs | K36: Present value | L36: Operation | N36: Fixed flows | O36: PV
D37: 0 | F37: =F28 -> 1000000 | J37: 1 | L37: =-K46 -> -1000000
D38: 1 | E38: 0.02 | F38: =IF(D38<=$F$30,IF($F$29="yes",$F$28/$F$30*($F$30-D39+1),$F$28),0) -> 857142.8571 | G38: =F37-F38 -> 142857.1429 | H38: =E38 -> 0.02 | I38: =H38*F37+G38 -> 162857.1429 | J38: =1/(1+E38)^D38 -> 0.9803921569 | K38: =I38/(1+E38)^D38 -> 159663.8655 | L38: =I38 -> 162857.1429 | N38: =($O$34*F37)+G38 -> 172893.8133 | O38: =N38*J38 -> 169503.7385
D39: 2 | E39: 0.025 | F39: =IF(D39<=$F$30,IF($F$29="yes",$F$28/$F$30*($F$30-D40+1),$F$28),0) -> 714285.7143 | G39: =F38-F39 -> 142857.1429 | H39: =(1+E39)^D39/(1+E38)^D38-1 -> 0.0300245098 | I39: =H39*F38+G39 -> 168592.437 | J39: =1/(1+E39)^D39 -> 0.9518143962 | K39: =I39/(1+E39)^D39 -> 160468.7086 | L39: =I39 -> 168592.437 | N39: =($O$34*F38)+G39 -> 168602.8604 | O39: =N39*J39 -> 160478.6297
D40: 3 | E40: 0.026 | F40: =IF(D40<=$F$30,IF($F$29="yes",$F$28/$F$30*($F$30-D41+1),$F$28),0) -> 571428.5714 | G40: 142857.1429 | H40: =(1+E40)^D40/(1+E39)^D39-1 -> 0.02800292778 | I40: 162859.2341 | J40: =1/(1+E40)^D40 -> 0.9258868535 | K40: =I40/(1+E40)^D40 -> 150789.2239 | L40: =I40 -> 162859.2341 | N40: 164311.9074 | O40: 152134.235
D41: 4 | E41: 0.028 | F41: =IF(D41<=$F$30,IF($F$29="yes",$F$28/$F$30*($F$30-D42+1),$F$28),0) -> 428571.4286 | G41: 142857.1429 | H41: =(1+E41)^D41/(1+E40)^D40-1 -> 0.03402342223 | I41: 162299.0984 | J41: =1/(1+E41)^D41 -> 0.8954215481 | K41: =I41/(1+E41)^D41 -> 145326.11 | L41: =I41 -> 162299.0984 | N41: 160020.9545 | O41: 143286.2108
D42: 5 | E42: 0.03 | F42: =IF(D42<=$F$30,IF($F$29="yes",$F$28/$F$30*($F$30-D43+1),$F$28),0) -> 285714.2857 | G42: 142857.1429 | H42: =(1+E42)^D42/(1+E41)^D41-1 -> 0.03803898628 | I42: 159159.5655 | J42: =1/(1+E42)^D42 -> 0.8626087844 | K42: =I42/(1+E42)^D42 -> 137292.4394 | L42: =I42 -> 159159.5655 | N42: 155730.0016 | O42: 134334.0674
D43: 6 | E43: 0.0325 | F43: =IF(D43<=$F$30,IF($F$29="yes",$F$28/$F$30*($F$30-D44+1),$F$28),0) -> 142857.1429 | G43: 142857.1429 | H43: =(1+E43)^D43/(1+E42)^D42-1 -> 0.04509131452 | I43: 155740.3756 | J43: =1/(1+E43)^D43 -> 0.825390827 | K43: =I43/(1+E43)^D43 -> 128546.6774 | L43: =I43 -> 155740.3756 | N43: 151439.0487 | O43: 124996.4016
D44: 7 | E44: 0.0355 | F44: =IF(D44<=$F$30,IF($F$29="yes",$F$28/$F$30*($F$30-D45+1),$F$28),0) -> 0 | G44: 142857.1429 | H44: =(1+E44)^D44/(1+E43)^D43-1 -> 0.05368393987 | I44: 150526.2771 | J44: =1/(1+E44)^D44 -> 0.7833381489 | K44: =I44/(1+E44)^D44 -> 117912.9753 | L44: =I44 -> 150526.2771 | N44: 147148.0958 | O44: 115266.717
D45: 8 | E45: 0.038 | F45: =IF(D45<=$F$30,IF($F$29="yes",$F$28/$F$30*($F$30-D46+1),$F$28),0) -> 0 | G45: 0 | H45: =(1+E45)^D45/(1+E44)^D44-1 -> 0.05566981898 | I45: 0 | J45: =1/(1+E45)^D45 -> 0.7420295009 | K45: =I45/(1+E45)^D45 -> 0 | L45: =I45 -> 0 | N45: 0 | O45: 0
K46: =SUM(K38:K45) -> 1000000 | O46: =SUM(O38:O45) -> 1000000
I49: weigthed average | J49: =IRR(L37:L45) -> 0.03010298015 | K49: (geometric/IRR)

Sheet modele (hidden)
F1: =RIGHT(CELL("filename", $A$1), LEN(CELL("filename", $A$1)) - SEARCH("]", CELL("filename", $A$1))) -> modele
F2: =MID(MID(CELL("filename",$A$1),SEARCH("[",CELL("filename",$A$1))+1,SEARCH(".",CELL("filename",$A$1))-SEARCH("[",CELL("filename",$A$1))-1),13,100) & " by Prof. Hugues Pirotte" & " (version " &2011&")" -> Fixed Income and Risk Management (FI) by Prof. Hugues Pirotte (version 2011)

Sheet Getting the spot rates
F1: =RIGHT(CELL("filename", $A$1), LEN(CELL("filename", $A$1)) - SEARCH("]", CELL("filename", $A$1))) -> Getting the spot rates
F2: =MID(MID(CELL("filename",$A$1),SEARCH("[",CELL("filename",$A$1))+1,SEARCH(".",CELL("filename",$A$1))-SEARCH("[",CELL("filename",$A$1))-1),13,100) & " by Prof. Hugues Pirotte" & " (version " &2011&")" -> Fixed Income and Risk Management (FI) by Prof. Hugues Pirotte (version 2011)
B4: 1 | C4: The spot rate curve or "zeor-coupon curve" or "curve of zeros"…
B14: 2 | C14: In reality, 0-coupon bonds are not very usual…therefore you have to use coupon-bearing bonds
B30: 3 | C30: What we tend to do, instead is:
D31: For short term | F31: use Deposit/Libor rates | I31: (Money market rates) | L31: 0-1y
D32: For medium term | F32: use Forward rates | L32: 1y-2y-3y
D33: For long rates | F33: use Swap rates | L33: 2y and more to 30y

Sheet PCA
F1: =RIGHT(CELL("filename", $A$1), LEN(CELL("filename", $A$1)) - SEARCH("]", CELL("filename", $A$1))) -> PCA
F2: =MID(MID(CELL("filename",$A$1),SEARCH("[",CELL("filename",$A$1))+1,SEARCH(".",CELL("filename",$A$1))-SEARCH("[",CELL("filename",$A$1))-1),13,100) & " by Prof. Hugues Pirotte" & " (version " &2011&")" -> Fixed Income and Risk Management (FI) by Prof. Hugues Pirotte (version 2011)
B4: 1 | C4: Factor loadings for the first 3 factors
E6: Maturity | F6: PC1 | G6: PC2 | H6: PC3 | K6: PC1 | L6: 17.49 | M6: =L6^2 -> 305.9001 | N6: =M6/$M$16 -> 0.8313110388
E7: 3m | F7: 0.21 | G7: -0.57 | H7: 0.5 | K7: PC2 | L7: 6.05 | M7: =L7^2 -> 36.6025 | N7: =M7/$M$16 -> 0.0994705863
E8: 6m | F8: 0.26 | G8: -0.49 | H8: 0.23 | K8: PC3 | L8: 3.1 | M8: =L8^2 -> 9.61 | N8: =M8/$M$16 -> 0.02611603946
E9: 12m | F9: 0.32 | G9: -0.32 | H9: -0.37 | K9: PC4 | L9: 2.17 | M9: =L9^2 -> 4.7089 | N9: =M9/$M$16 -> 0.01279685934
E10: 2y | F10: 0.35 | G10: -0.1 | H10: -0.38 | K10: PC5 | L10: 1.97 | M10: =L10^2 -> 3.8809 | N10: =M10/$M$16 -> 0.01054669485
E11: 3y | F11: 0.36 | G11: -0.02 | H11: -0.3 | K11: PC6 | L11: 1.69 | M11: =L11^2 -> 2.8561 | N11: =M11/$M$16 -> 0.007761708668
E12: 4y | F12: 0.36 | G12: 0.14 | H12: -0.12 | K12: PC7 | L12: 1.27 | M12: =L12^2 -> 1.6129 | N12: =M12/$M$16 -> 0.004383200837
E13: 5y | F13: 0.36 | G13: 0.17 | H13: -0.04 | K13: PC8 | L13: 1.24 | M13: =L13^2 -> 1.5376 | N13: =M13/$M$16 -> 0.004178566314
E14: 7y | F14: 0.34 | G14: 0.27 | H14: 0.15 | K14: PC9 | L14: 0.8 | M14: =L14^2 -> 0.64 | N14: =M14/$M$16 -> 0.001739257571
E15: 10y | F15: 0.31 | G15: 0.3 | H15: 0.28 | K15: PC10 | L15: 0.79 | M15: =L15^2 -> 0.6241 | N15: =M15/$M$16 -> 0.00169604789
E16: 30y | F16: 0.25 | G16: 0.33 | H16: 0.46 | M16: =SUM(M6:M15) -> 367.9731
B18: 1 | C18: Changes in the portfolio value for a 1-basis point rate move ($ millions)
F20: Change | G20: PC1 | H20: PC2 | I20: PC3
E21: 1y | F21: 10 | G21: =SUMPRODUCT($F$21:$F$25,F9:F13) -> -0.08 | H21: =SUMPRODUCT($F$21:$F$25,G9:G13) -> -4.08 | I21: =SUMPRODUCT($F$21:$F$25,H9:H13) -> -2.06
E22: 2y | F22: 4
E23: 3y | F23: -8
E24: 4y | F24: -7
E25: 5y | F25: 2

Sheet Homework
F1: =RIGHT(CELL("filename", $A$1), LEN(CELL("filename", $A$1)) - SEARCH("]", CELL("filename", $A$1))) -> Homework
F2: =MID(MID(CELL("filename",$A$1),SEARCH("[",CELL("filename",$A$1))+1,SEARCH(".",CELL("filename",$A$1))-SEARCH("[",CELL("filename",$A$1))-1),13,100) & " by Prof. Hugues Pirotte" & " (version " &2011&")" -> Fixed Income and Risk Management (FI) by Prof. Hugues Pirotte (version 2011)
B5: 1 | C5: The bank has proposed an investment product to a client that lasts
C6: 3 | D6: years
C7: There is no intermediary payment. The client invests
C8: 10000 | D8: USD
C9: The structure of interest rates at the time of the bank's proposal is flat and at
C10: 0.12
C11: So, the client expects to have, exactly after 3 years, a return of 12%
C13: There is no ideal 3y 0-coupon bond in which the bank can invest the 10'000 USD.
C14: But instead, there are two bonds in which the bank can invest to form a portfolio
C15: that is aimed at replicating the strategy proposed to the client.
C16: The two bonds are:
D17: Maturity | E17: Coupon
C18: Bond 1 | D18: 2 | E18: 10
C19: Bond 2 | D19: 5 | E19: 10
B21: Q | C21: How do you invest the 10'000 in these two bonds?
C22: What do you do between day 0 and during the life of the strategy?

Sheet Immunisation
F1: =RIGHT(CELL("filename", $A$1), LEN(CELL("filename", $A$1)) - SEARCH("]", CELL("filename", $A$1))) -> Immunisation
F2: =MID(MID(CELL("filename",$A$1),SEARCH("[",CELL("filename",$A$1))+1,SEARCH(".",CELL("filename",$A$1))-SEARCH("[",CELL("filename",$A$1))-1),13,100) & " by Prof. Hugues Pirotte" & " (version " &2011&")" -> Fixed Income and Risk Management (FI) by Prof. Hugues Pirotte (version 2011)
G4: immunisation | H4: = replicating a 0-coupon bond with coupon-paying bonds
B6: 1 | C6: Commitment with a client | F6: 3 | G6: years investment
C7: Current structure of IRs | F7: 0.12 | G7: flat
C9: There is no 3 years 0-coupon bond
C10: You have two bonds in the market instead
D11: coupon | E11: maturity
B12: a | C12: A-bond | D12: 10 | E12: 2
B13: b | C13: B-bond | D13: 10 | E13: 5
C15: For the bank, the problem is the following:
C17: Assets | F17: Liabilities
C18: A-bond | D18: ? | E18: EUR | F18: 3y straight bond | G18: 10000 | H18: EUR
C19: B-bond | D19: ? | E19: EUR
C21: duration | D21: 3 | F21: duration | G21: 3
F22: amount | H22: expected at T=3
B24: 2 | C24: Solution
D26: Year 0 | F26: rate | G26: =F7 -> 0.12 | K26: Year 1 | M26: rate | N26: 0.12 | R26: Year 2 | T26: rate | U26: 0.12 | Y26: Year 3 | AA26: rate | AB26: 0.12
D28: A-bond | F28: B-bond | K28: A-bond | M28: B-bond | R28: A-bond | T28: B-bond | Y28: A-bond | AA28: B-bond
D29: CFs | E29: PV(CFs) | F29: CFs | G29: PV(CFs) | K29: CFs | L29: PV(CFs) | M29: CFs | N29: PV(CFs) | R29: CFs | S29: PV(CFs) | T29: CFs | U29: PV(CFs) | Y29: CFs | Z29: PV(CFs) | AA29: CFs | AB29: PV(CFs)
C30: 0 | E30: =SUM(E31:E36) -> 96.61989796 | G30: =SUM(G31:G36) -> 92.7904476 | J30: 0 | L30: =SUM(L31:L36) -> 98.21428571 | N30: =SUM(N31:N36) -> 93.92530131 | Q30: 0 | S30: 100 | U30: =SUM(U31:U36) -> 95.19633746 | X30: 0 | AB30: =SUM(AB31:AB36) -> 96.61989796
C31: 1 | D31: 10 | E31: =D31/(1+$G$26)^$C31 -> 8.928571429 | F31: 10 | G31: =F31/(1+$G$26)^$C31 -> 8.928571429
C32: 2 | D32: 110 | E32: =D32/(1+$G$26)^$C32 -> 87.69132653 | F32: 10 | G32: 7.971938776 | J32: 1 | K32: 110 | L32: =K32/(1+$N$26)^$J32 -> 98.21428571 | M32: 10 | N32: =M32/(1+$N$26)^$J32 -> 8.928571429
C33: 3 | F33: 10 | G33: 7.117802478 | J33: 2 | M33: 10 | N33: =M33/(1+$N$26)^$J33 -> 7.971938776 | Q33: 1 | T33: 10 | U33: =T33/(1+U$26)^Q33 -> 8.928571429
C34: 4 | F34: 10 | G34: 6.355180784 | J34: 3 | M34: 10 | N34: 7.117802478 | Q34: 2 | T34: 10 | U34: =T34/(1+U$26)^Q34 -> 7.971938776 | X34: 1 | AA34: 10 | AB34: =AA34/(1+AB$26)^X34 -> 8.928571429
C35: 5 | F35: 110 | G35: 62.41695413 | J35: 4 | M35: 110 | N35: 69.90698862 | Q35: 3 | T35: 110 | U35: 78.29582726 | X35: 2 | AA35: 110 | AB35: =AA35/(1+AB$26)^X35 -> 87.69132653
D37: Duration | E37: =SUMPRODUCT($C$31:$C$35,E31:E35)/E30 -> 1.907590759 | F37: Duration | G37: =SUMPRODUCT($C$31:$C$35,G31:G35)/G30 -> 4.135461787 | K37: Duration | L37: =SUMPRODUCT($J$32:$J$35,L32:L35)/L30 -> 1 | M37: Duration | N37: =SUMPRODUCT($J$32:$J$35,N32:N35)/N30 -> 3.469286831 | R37: Duration | S37: =SUMPRODUCT($J$32:$J$35,S32:S35)/S30 -> 0 | T37: Duration | U37: =SUMPRODUCT($Q$32:$Q$35,U32:U35)/U30 -> 2.728675679
D38: Weights | E38: =(E40-G37)/(E37-G37) -> 0.5096622617 | G38: =1-E38 -> 0.4903377383 | K38: Weights | L38: =(L40-N37)/(L37-N37) -> 0.5950247709 | N38: =1-L38 -> 0.4049752291 | R38: Weights | S38: =(S40-U37)/(S37-U37) -> 0.6335218554 | U38: =1-S38 -> 0.3664781446
D40: Desired duration | E40: 3 | K40: Desired duration | L40: 2 | R40: Desired duration | S40: 1 | Y40: Desired duration | Z40: 0
D41: Effective duration | E41: =E37*E38+G37*G38 -> 3 | K41: Effective duration | L41: =L37*L38+N37*N38 -> 2 | R41: Effective duration | S41: 1 | Y41: Effective duration
D42: Amount available? | E42: 10000 | K42: Amount available? | L42: =E45*(10+L30)+G45*(10+N30) -> 11200 | M42: =L42/E42-1 -> 0.12 | R42: Amount available? | S42: =L45*(10+S30)+N45*(10+U30) -> 12544 | T42: =S42/L42-1 -> 0.12 | Y42: Amount available? | Z42: =U45*(10+AB30)+S44*(1+AB26) -> 14049.28 | AA42: =(Z42/E42)^(1/3)-1 -> 0.12
D44: Allocation | E44: =E42*E38 -> 5096.622617 | F44: EUR | G44: =E42*G38 -> 4903.377383 | H44: EUR | K44: Allocation | L44: =L42*L38 -> 6664.277434 | M44: EUR | N44: =L42*N38 -> 4535.722566 | O44: EUR | R44: Allocation | S44: =S38*S42 -> 7946.898154 | T44: EUR | U44: =S42*U38 -> 4597.101846 | V44: EUR | Y44: Average yearly return over 3y
D45: # bonds of 1000? | E45: =E44/E30 -> 52.74920306 | G45: =G44/G30 -> 52.84355783 | H45: =GetFormulaNumbers(G45) -> =4'903.38/92.79 | K45: # bonds of 1000? | L45: =L44/L30 -> 67.85446115 | N45: =N44/N30 -> 48.29074278 | R45: # bonds of 1000? | U45: =U44/U30 -> 48.29074278
B49: 3 | C49: Stress-test
E50: Rate at year 2
D51: =AA42 -> 0.12 | E51: 0.02 | F51: 0.1 | G51: 0.11 | H51: 0.13 | I51: 0.15
C52: rate at year 1 | D52: 0.09 | E52: 0.1248733934 | F52: 0.1204512481 | G52: 0.1204523207 | H52: 0.1207862414 | I52: 0.121542353
D53: 0.1 | E53: 0.1251675926 | F53: 0.1202488145 | G53: 0.120192523 | H53: 0.1204145577 | I53: 0.1210624058
D54: 0.11 | E54: 0.125589591 | F54: 0.1201751758 | G54: 0.1200616372 | H54: 0.1201720188 | I54: 0.1207118361
D55: 0.12 | E55: 0.1261359065 | F55: 0.1202268466 | G55: 0.1200561767 | H55: 0.1200551345 | I55: 0.1204871489
D56: 0.15 | E56: 0.1284876449 | F56: 0.1211006011 | G56: 0.1207592213 | H56: 0.1204252548 | I56: 0.120535191
